bitfinex/quotes_BTCUSD_20250902
["timestamp","ask_amount","ask_price","bid_price","bid_amount"]
[1756816668578,1.04747515,109530.0,109520.0,0.00668]
[1756816668827,0.95555916,109530.0,109520.0,0.00668]
[1756816669017,0.97995147,109530.0,109520.0,0.00668]
[1756816669229,0.95555916,109530.0,109520.0,0.00668]
[1756816669459,0.97995147,109530.0,109520.0,0.00668]
[1756816670344,0.95555916,109530.0,109520.0,0.00668]
[1756816670572,0.97995147,109530.0,109520.0,0.00668]
[1756816670790,0.95555916,109530.0,109520.0,0.00668]
[1756816671565,0.95575916,109530.0,109520.0,0.00668]
[1756816672167,0.95563916,109530.0,109520.0,0.00668]
[1756816677385,0.95563759,109530.0,109520.0,0.00668]
[1756816679459,0.79739759,109530.0,109520.0,0.00668]
[1756816679682,0.95535759,109530.0,109520.0,0.00668]
[1756816680398,0.7054816,109530.0,109520.0,0.00668]
[1756816680620,0.84906855,109530.0,109520.0,0.00668]
[1756816680830,0.84902855,109530.0,109520.0,0.00668]
[1756816681449,0.84266943,109530.0,109520.0,0.00668]
[1756816681930,0.27458943,109530.0,109520.0,0.00668]
[1756816682163,0.37085582,109530.0,109520.0,0.18929504]
[1756816682391,0.37085582,109530.0,109520.0,0.00668]
[1756816682613,0.37085582,109530.0,109520.0,0.00896268]
[1756816683698,0.37085582,109530.0,109520.0,0.00668]
[1756816684124,0.37085582,109530.0,109520.0,0.18929504]
[1756816684552,0.37085582,109530.0,109520.0,0.00668]
[1756816689324,0.37085582,109530.0,109520.0,0.0014]
[1756816689752,0.37085582,109530.0,109520.0,0.00433]
[1756816689967,0.37085582,109530.0,109520.0,0.0064]
[1756816690564,0.37085582,109530.0,109520.0,0.00433]
[1756816692115,0.37085582,109530.0,109520.0,0.0014]
[1756816692526,0.37085582,109530.0,109520.0,0.00433]
[1756816692742,0.71085582,109530.0,109520.0,0.0014]
[1756816692975,0.96240581,109530.0,109520.0,0.0014]
[1756816693189,0.97494031,109530.0,109520.0,0.0014]
[1756816693399,1.01162031,109530.0,109520.0,0.0014]
[1756816694073,1.06517124,109530.0,109520.0,0.0014]
[1756816694284,0.18261504,109520.0,109510.0,0.0004]
[1756816694492,0.66481006,109520.0,109510.0,0.0004]
[1756816695770,0.66581006,109520.0,109510.0,0.0004]
[1756816696187,0.66481006,109520.0,109510.0,0.0004]
[1756816696398,0.67910517,109520.0,109510.0,0.0004]
[1756816696601,0.77202116,109520.0,109510.0,0.0004]
[1756816696822,0.77302116,109520.0,109510.0,0.0034]
[1756816697251,0.77202116,109520.0,109510.0,0.0004]
[1756816697449,0.77202012,109520.0,109510.0,0.0004]
[1756816697661,0.77302012,109520.0,109510.0,0.0014]
[1756816698077,0.77301925,109520.0,109510.0,0.0014]
[1756816698696,0.93049925,109520.0,109510.0,0.0014]
[1756816699146,0.77301925,109520.0,109510.0,0.0014]
[1756816699359,0.95797335,109520.0,109510.0,0.0014]
[1756816699830,0.96461706,109520.0,109510.0,0.0014]
[1756816700700,0.98888403,109520.0,109510.0,1e-08]
[1756816700911,1.05817614,109520.0,109510.0,1e-08]
[1756816701576,6.21730689,109520.0,109490.0,0.0004]
[1756816701788,0.54701457,109500.0,109490.0,0.0004]
[1756816702000,0.71950523,109500.0,109490.0,0.0004]
[1756816702423,0.7469733,109500.0,109490.0,0.0004]
[1756816702624,0.78826248,109500.0,109490.0,0.0004]
[1756816703072,0.78826248,109500.0,109490.0,0.00087165]
[1756816703284,0.80256123,109500.0,109490.0,0.00087165]
[1756816703502,0.94913388,109500.0,109490.0,0.00087165]
[1756816703711,0.97350005,109500.0,109490.0,0.00087165]
[1756816704384,0.95113388,109500.0,109490.0,0.00187165]
[1756816704607,1.10833388,109500.0,109490.0,0.00087165]
[1756816704817,0.95013388,109500.0,109490.0,0.00087165]
[1756816705041,0.95113388,109500.0,109490.0,0.00187165]
[1756816705251,1.10941388,109500.0,109490.0,0.00187165]
[1756816707146,0.8993977,109500.0,109490.0,0.00187165]
[1756816707311,1.0820461,109500.0,109490.0,0.00187165]
[1756816707905,1.08202149,109500.0,109490.0,0.00187165]
[1756816708792,0.18266508,109490.0,109480.0,0.0004]
[1756816708995,0.62082566,109490.0,109480.0,0.0004]
[1756816709214,0.96082566,109490.0,109480.0,0.0004]
[1756816709438,0.98829649,109490.0,109480.0,0.0004]
[1756816709662,0.83009649,109490.0,109480.0,0.0004]
[1756816709793,0.98821649,109490.0,109480.0,0.0054]
[1756816710523,0.98921649,109490.0,109480.0,0.0054]
[1756816710789,0.99021649,109490.0,109480.0,0.0064]
[1756816711005,0.99009649,109490.0,109480.0,0.0064]
[1756816711551,0.99009342,109490.0,109480.0,0.0064]
[1756816711759,0.89817743,109490.0,109480.0,0.0064]
[1756816712000,0.74017743,109490.0,109480.0,0.0064]
[1756816712176,0.8723319,109490.0,109480.0,0.0064]
[1756816712383,0.8863869,109490.0,109480.0,0.0064]
[1756816712631,0.7283869,109490.0,109480.0,0.0064]
[1756816712833,0.97830289,109490.0,109480.0,0.0064]
[1756816713268,0.99773504,109490.0,109480.0,0.0064]
[1756816713467,1.00402148,109490.0,109480.0,0.0064]
[1756816714355,0.84606209,109490.0,109480.0,0.0064]
[1756816714583,1.00402209,109490.0,109480.0,0.0064]
[1756816715748,1.00402209,109490.0,109470.0,0.0004]
[1756816715749,0.18268176,109480.0,109470.0,0.0004]
[1756816715973,0.55011294,109480.0,109470.0,0.0004]
[1756816717529,0.55111294,109480.0,109470.0,0.0004]
[1756816717746,0.39327294,109480.0,109470.0,0.0054]
[1756816717960,0.55203294,109480.0,109470.0,0.00533]
[1756816718196,0.57297176,109480.0,109470.0,0.0024]
[1756816718638,0.5729773,109480.0,109470.0,0.0024]
[1756816719055,0.95164408,109480.0,109470.0,0.0024]
[1756816719274,1.05305446,109480.0,109470.0,0.0024]
[1756816719527,1.02878749,109480.0,109470.0,0.0024]
[1756816719763,1.02878749,109480.0,109470.0,0.00777]
[1756816719764,0.84325772,109480.0,109470.0,0.00777]
[1756816719976,0.97748949,109480.0,109470.0,0.00564]
[1756816720429,0.95655067,109480.0,109470.0,0.00777]
[1756816720610,0.79883067,109480.0,109470.0,0.00777]
[1756816720822,0.94229006,109480.0,109470.0,0.00777]
[1756816721048,0.93329006,109480.0,109470.0,0.00777]
[1756816721472,0.96577829,109480.0,109470.0,0.00777]
[1756816721886,1.46577829,109480.0,109470.0,0.00777]
[1756816722121,1.30802456,109480.0,109470.0,0.00777]
[1756816722335,1.46578456,109480.0,109470.0,0.00777]
[1756816722557,1.24358146,109480.0,109470.0,0.00777]
[1756816722770,1.3831937,109480.0,109470.0,0.00777]
[1756816723853,1.3832511,109480.0,109470.0,0.00777]
[1756816724522,1.3832511,109480.0,109470.0,0.0024]
[1756816724997,1.3832511,109480.0,109470.0,0.00777]
[1756816725209,1.47508709,109480.0,109470.0,0.00777]
[1756816725425,1.50757532,109480.0,109470.0,0.00777]
[1756816725858,1.50753532,109480.0,109470.0,0.00777]
[1756816726550,1.5075463,109480.0,109470.0,0.00777]
[1756816728847,1.5073863,109480.0,109470.0,0.00777]
[1756816729077,1.50103646,109480.0,109470.0,0.00777]
[1756816729293,1.50745019,109480.0,109470.0,0.00777]
[1756816729519,1.4830859,109480.0,109470.0,0.00777]
[1756816729734,1.32557378,109480.0,109470.0,0.00777]
[1756816729991,0.88478348,109480.0,109470.0,0.00777]
[1756816730205,0.75807305,109480.0,109470.0,0.00777]
[1756816730446,0.91559305,109480.0,109470.0,0.00777]
[1756816730676,0.90129258,109480.0,109470.0,0.00777]
[1756816732649,0.90125258,109480.0,109470.0,0.00777]
[1756816733750,0.86876435,109480.0,109470.0,0.00777]
[1756816735558,0.90125258,109480.0,109470.0,0.00564]
[1756816735787,0.92902235,109480.0,109470.0,0.0024]
[1756816736011,0.92902235,109480.0,109470.0,0.00777]
[1756816737605,0.92898235,109480.0,109470.0,0.00777]
[1756816738319,0.74377258,109480.0,109470.0,0.00777]
[1756816738541,0.90117258,109480.0,109470.0,0.00777]
[1756816739686,0.90120417,109480.0,109470.0,0.00777]
[1756816741213,0.74380417,109480.0,109470.0,0.00777]
[1756816741400,0.86891594,109480.0,109470.0,0.00777]
[1756816742985,0.86891594,109480.0,109470.0,0.0024]
[1756816743187,0.90140417,109480.0,109470.0,0.0024]
[1756816744494,0.86891594,109480.0,109470.0,0.0024]
[1756816745748,0.96083251,109480.0,109470.0,0.0024]
[1756816746765,0.86891652,109480.0,109470.0,0.0024]
[1756816748742,0.86891652,109480.0,109470.0,0.00564]
[1756816749425,0.86891825,109480.0,109470.0,0.0024]
[1756816749658,0.90140648,109480.0,109470.0,0.0024]
[1756816750339,0.90141467,109480.0,109470.0,0.0024]
[1756816750598,0.96084243,109480.0,109470.0,0.0024]
[1756816751614,0.96084243,109480.0,109470.0,0.00549]
[1756816751885,1.02143916,109480.0,109470.0,0.0024]
[1756816753068,1.02144598,109480.0,109470.0,0.0024]
[1756816753291,1.0423848,109480.0,109470.0,0.0024]
[1756816753772,1.01797252,109480.0,109470.0,0.0024]
[1756816756275,1.01797505,109480.0,109470.0,0.0024]
[1756816757385,1.04225337,109480.0,109470.0,0.0024]
[1756816757595,0.88465337,109480.0,109470.0,0.0024]
[1756816757813,1.01777505,109480.0,109470.0,0.0024]
[1756816759353,1.03207548,109480.0,109470.0,0.0024]
[1756816759575,1.10527196,109480.0,109470.0,0.0024]
[1756816759791,1.066413,109480.0,109470.0,0.0024]
[1756816760005,1.07277958,109480.0,109470.0,0.0024]
[1756816760459,1.10438863,109480.0,109470.0,0.0024]
[1756816760719,1.10338863,109480.0,109470.0,0.0004]
[1756816760926,1.10438863,109480.0,109470.0,0.0004]
[1756816761147,1.10538863,109480.0,109470.0,0.0014]
[1756816761385,1.07277958,109480.0,109470.0,0.0014]
[1756816761595,1.07177958,109480.0,109470.0,0.0014]
[1756816762061,1.07277958,109480.0,109470.0,0.0014]
[1756816762744,1.07349958,109480.0,109470.0,0.0014]
[1756816764308,0.88727108,109480.0,109470.0,0.0014]
[1756816764563,1.05462274,109480.0,109470.0,0.0014]
[1756816764806,1.05462274,109480.0,109470.0,0.00658]
[1756816764807,0.73380982,109480.0,109470.0,0.00658]
[1756816765024,0.48897224,109480.0,109470.0,0.00658]
[1756816765485,0.82897224,109480.0,109470.0,0.00658]
[1756816766687,1.37039517,109480.0,109470.0,0.00658]
[1756816766907,1.39880987,109480.0,109470.0,0.00658]
[1756816767105,0.89880987,109480.0,109470.0,0.00658]
[1756816767330,0.71135517,109480.0,109470.0,0.00658]
[1756816767546,0.87035517,109480.0,109470.0,0.00658]
[1756816767768,0.84602963,109480.0,109470.0,0.00658]
[1756816767978,0.87047579,109480.0,109470.0,0.00658]
[1756816768667,0.82905224,109480.0,109470.0,0.00658]
[1756816769103,0.94541377,109480.0,109470.0,0.00658]
[1756816769326,0.96239229,109480.0,109470.0,0.00658]
[1756816769807,0.8704763,109480.0,109470.0,0.00658]
[1756816770152,0.84603146,109480.0,109470.0,0.00658]
[1756816770387,0.82268207,109480.0,109470.0,0.00658]
[1756816770583,0.87047446,109480.0,109470.0,0.00658]
[1756816771053,0.87047439,109480.0,109470.0,0.00658]
[1756816771268,0.96239038,109480.0,109470.0,0.00658]
[1756816771493,0.99080508,109480.0,109470.0,0.00658]
[1756816772237,1.0150834,109480.0,109470.0,0.0014]
[1756816772443,1.04767343,109480.0,109470.0,0.0014]
[1756816772655,1.06861225,109480.0,109470.0,0.0014]
[1756816773410,6.06049484,109480.0,109470.0,0.0014]
[1756816773626,6.07479587,109480.0,109470.0,0.0014]
[1756816775311,6.05051755,109480.0,109470.0,0.0014]
[1756816775739,6.02210285,109480.0,109470.0,0.0014]
[1756816777132,6.02210285,109480.0,109470.0,0.00449]
[1756816777348,6.0549917,109480.0,109470.0,0.0014]
[1756816777565,6.05497045,109480.0,109470.0,0.0014]
[1756816778831,6.0224016,109480.0,109470.0,0.0014]
[1756816779045,6.5224016,109480.0,109470.0,0.0014]
[1756816779246,6.52215955,109480.0,109470.0,0.0014]
[1756816781150,6.52216458,109480.0,109470.0,0.0014]
[1756816781842,6.55057928,109480.0,109470.0,0.0014]
[1756816782647,6.55033928,109480.0,109470.0,0.0014]
[1756816783032,6.52192458,109480.0,109470.0,0.0014]
[1756816784761,6.52192872,109480.0,109470.0,0.0014]
[1756816786248,6.52176872,109480.0,109470.0,0.0014]
[1756816786709,6.52176872,109480.0,109470.0,0.00463]
[1756816787042,6.36272872,109480.0,109470.0,0.00463]
[1756816787333,6.52176872,109480.0,109470.0,0.0014]
[1756816787802,6.52176872,109480.0,109470.0,0.00463]
[1756816788020,6.55018342,109480.0,109470.0,0.0014]
[1756816788267,6.64474174,109480.0,109470.0,0.0014]
[1756816791722,6.63837886,109480.0,109470.0,0.0014]
[1756816791951,6.64474707,109480.0,109470.0,0.0014]
[1756816792201,6.64474707,109480.0,109470.0,0.00463]
[1756816792422,6.64474729,109480.0,109470.0,0.00463]
[1756816792649,6.64474729,109480.0,109470.0,1e-08]
[1756816793127,6.14474729,109480.0,109470.0,1e-08]
[1756816794590,1.02269844,109470.0,109460.0,0.00323]
[1756816794870,6.46515157,109470.0,109460.0,0.00323]
[1756816795129,1.46515157,109470.0,109460.0,0.00536]
[1756816795627,1.49356627,109470.0,109460.0,0.00536]
[1756816795909,1.49344627,109470.0,109460.0,0.00536]
[1756816796138,1.21447558,109470.0,109460.0,0.00536]
[1756816796363,1.18188731,109470.0,109460.0,0.00536]
[1756816796576,1.34152731,109470.0,109460.0,0.00736]
[1756816796798,1.34252731,109470.0,109460.0,0.00736]
[1756816797228,1.30111132,109470.0,109460.0,0.00736]
[1756816798558,1.34223488,109470.0,109460.0,0.00736]
[1756816798982,1.36970742,109470.0,109460.0,0.00736]
[1756816799208,1.11915143,109470.0,109460.0,0.00736]
[1756816799450,0.93206597,109470.0,109460.0,0.00736]
[1756816799664,1.27206597,109470.0,109460.0,0.00736]
[1756816800368,1.27210597,109470.0,109460.0,0.00964393]
[1756816800592,1.27210597,109470.0,109460.0,0.00736]
[1756816803573,1.27214597,109470.0,109460.0,0.00736]
[1756816804353,0.77214598,109470.0,109460.0,0.00736]
[1756816805874,0.75265455,109470.0,109460.0,0.00736]
[1756816807620,0.77219881,109470.0,109460.0,0.00736]
[1756816807843,0.73107525,109470.0,109460.0,0.00736]
[1756816808541,0.71153099,109470.0,109460.0,0.00736]
[1756816808989,0.73107392,109470.0,109460.0,0.00736]
[1756816813561,0.77143623,109470.0,109460.0,0.00736]
[1756816814280,0.61207623,109470.0,109460.0,0.00736]
[1756816814520,0.77119623,109470.0,109460.0,0.00736]
[1756816817148,0.86311222,109470.0,109460.0,0.00523]
[1756816817577,0.86311222,109470.0,109460.0,0.002]
[1756816817800,0.86947252,109470.0,109460.0,0.002]
[1756816818025,0.96138851,109470.0,109460.0,0.002]
[1756816818957,0.96138889,109470.0,109460.0,0.002]
[1756816819392,0.98583009,109470.0,109460.0,0.002]
[1756816820294,0.96138889,109470.0,109460.0,0.002]
[1756816820480,0.98583009,109470.0,109460.0,0.002]
[1756816821287,0.78932441,109470.0,109460.0,0.002]
[1756816821518,0.87263111,109470.0,109460.0,0.002]
[1756816821990,0.85566567,109470.0,109460.0,0.002]
[1756816822202,0.87263167,109470.0,109460.0,0.002]
[1756816822597,0.87263347,109470.0,109460.0,0.002]
[1756816823458,0.87223347,109470.0,109460.0,0.00721]
[1756816823642,0.87223347,109470.0,109460.0,0.002]
[1756816824431,0.93320561,109470.0,109460.0,0.002]
[1756816825034,0.95764681,109470.0,109460.0,0.002]
[1756816827566,0.95744681,109470.0,109460.0,0.002]
[1756816827811,0.8926433,109470.0,109460.0,0.002]
[1756816828037,0.9170845,109470.0,109460.0,0.002]
[1756816828247,0.8926433,109470.0,109460.0,0.002]
[1756816828724,0.8926433,109470.0,109460.0,0.00523]
[1756816829397,0.8926433,109470.0,109460.0,0.002]
[1756816830324,0.9170845,109470.0,109460.0,0.002]
[1756816831200,0.91708672,109470.0,109460.0,0.002]
[1756816831401,0.94967499,109470.0,109460.0,0.002]
[1756816831926,0.93270882,109470.0,109460.0,0.002]
[1756816833154,0.93270855,109470.0,109460.0,0.002]
[1756816833369,0.59270855,109470.0,109460.0,0.002]
[1756816833812,0.97459731,109470.0,109460.0,0.002]
[1756816834020,0.81607731,109470.0,109460.0,0.002]
[1756816834227,0.97435731,109470.0,109460.0,0.002]
[1756816834875,0.97435731,109470.0,109460.0,0.00523]
[1756816835491,0.81607731,109470.0,109460.0,0.00721]
[1756816835693,0.97427731,109470.0,109460.0,0.00721]
[1756816835929,0.94168904,109470.0,109460.0,0.00721]
[1756816836347,0.94168904,109470.0,109460.0,0.00523]
[1756816837058,0.60168904,109470.0,109460.0,0.00523]
[1756816837933,0.97427731,109470.0,109460.0,0.00523]
[1756816838139,0.94168904,109470.0,109460.0,0.00523]
[1756816838993,0.94156904,109470.0,109460.0,0.00523]
[1756816839442,0.78348904,109470.0,109460.0,0.00523]
[1756816839685,0.94148904,109470.0,109460.0,0.00523]
[1756816840101,0.78348904,109470.0,109460.0,0.00725]
[1756816840314,0.88047897,109470.0,109460.0,0.00725]
[1756816841243,0.72251897,109470.0,109460.0,0.00725]
[1756816841495,0.88043897,109470.0,109460.0,0.00725]
[1756816842299,0.72251897,109470.0,109460.0,0.00725]
[1756816842509,0.88043897,109470.0,109460.0,0.00725]
[1756816843440,0.91543697,109470.0,109460.0,0.00725]
[1756816843640,0.90907079,109470.0,109460.0,0.00725]
[1756816843826,0.91543981,109470.0,109460.0,0.00725]
[1756816844364,0.90907079,109470.0,109460.0,0.00725]
[1756816844572,0.91544076,109470.0,109460.0,0.00725]
[1756816845370,0.94802903,109470.0,109460.0,0.00725]
[1756816847764,0.94802903,109470.0,109460.0,0.002]
[1756816847972,0.94802903,109470.0,109460.0,0.00502]
[1756816848194,0.94802903,109470.0,109460.0,0.002]
[1756816848401,0.94802903,109470.0,109460.0,0.00502]
[1756816849364,0.94802903,109470.0,109460.0,0.00704]
[1756816850426,0.75511103,109470.0,109460.0,0.00704]
[1756816850641,0.88020276,109470.0,109460.0,0.00704]
[1756816850908,0.72252276,109470.0,109460.0,0.00704]
[1756816851135,0.88020276,109470.0,109460.0,0.00704]
[1756816852941,0.60616557,109470.0,109460.0,0.00704]
[1756816853188,0.7574356,109470.0,109460.0,0.00704]
[1756816854583,0.71554669,109470.0,109460.0,0.00932393]
[1756816856412,0.69600376,109470.0,109460.0,0.00932393]
[1756816857063,0.69600376,109470.0,109460.0,0.00704]
[1756816858850,0.69600376,109470.0,109460.0,0.00932393]
[1756816859662,0.69600376,109470.0,109460.0,0.00704]
[1756816862843,0.01566531,109470.0,109460.0,0.18975514]
[1756816863064,0.19836376,109470.0,109460.0,0.18975514]
[1756816863317,0.18268432,109480.0,109470.0,0.18269087]
[1756816863529,0.55014941,109480.0,109470.0,0.18471087]
[1756816863746,0.21014941,109480.0,109470.0,0.00504]
[1756816864187,0.55014941,109480.0,109470.0,0.00504]
[1756816864655,0.55114941,109480.0,109470.0,0.00504]
[1756816865755,0.55214941,109480.0,109470.0,0.00604]
[1756816868442,0.6440654,109480.0,109470.0,0.001]
[1756816869103,0.6440654,109480.0,109470.0,0.00402]
[1756816869761,0.6440654,109480.0,109470.0,0.001]
[1756816870193,0.6440654,109480.0,109470.0,0.00412]
[1756816870410,0.6440654,109480.0,109470.0,0.001]
[1756816871402,0.66359926,109480.0,109470.0,0.001]
[1756816874270,0.66359926,109480.0,109470.0,0.00412]
[1756816874487,0.7240132,109480.0,109470.0,0.001]
[1756816874763,0.84037039,109480.0,109470.0,0.001]
[1756816875200,0.87130091,109480.0,109470.0,0.001]
[1756816875425,0.90388918,109480.0,109470.0,0.001]
[1756816875877,0.91819103,109480.0,109470.0,0.001]
[1756816876092,1.07563103,109480.0,109470.0,0.001]
[1756816876543,6.05118983,109480.0,109470.0,1e-08]
[1756816876767,0.18271514,109460.0,109450.0,0.0004]
[1756816876997,0.96268014,109460.0,109450.0,0.0004]
[1756816877228,1.08380462,109460.0,109450.0,0.0004]
[1756816877439,0.57678805,109450.0,109440.0,0.0004]
[1756816877671,1.02642858,109450.0,109420.0,0.00133092]
[1756816877888,0.52276523,109430.0,109420.0,0.00133092]
[1756816878105,0.72613107,109430.0,109420.0,0.00133092]
[1756816878323,0.72610952,109430.0,109420.0,0.00133092]
[1756816878609,0.52278194,109420.0,109410.0,0.0004]
[1756816878832,0.61257425,109420.0,109410.0,0.0004]
[1756816879051,0.81602201,109420.0,109410.0,0.0004]
[1756816879278,0.92666444,109420.0,109410.0,0.0004]
[1756816879497,0.90227405,109420.0,109410.0,0.0004]
[1756816879719,1.05971405,109420.0,109410.0,0.0004]
[1756816879937,0.97117784,109420.0,109410.0,0.0004]
[1756816880389,0.8551025,109420.0,109410.0,0.0004]
[1756816880615,1.0135425,109420.0,109410.0,1e-08]
[1756816881079,1.0155425,109420.0,109410.0,1e-08]
[1756816882241,0.7488549,109420.0,109410.0,1e-08]
[1756816882533,0.72934259,109420.0,109410.0,0.00527001]
[1756816882748,0.88682259,109420.0,109410.0,0.00527001]
[1756816884334,0.72934259,109420.0,109410.0,0.00527001]
[1756816884550,0.88682259,109420.0,109410.0,0.00527001]
[1756816884762,0.97873858,109420.0,109410.0,0.00527001]
[1756816885230,0.97873858,109420.0,109410.0,1e-08]
[1756816886605,1.00830649,109420.0,109410.0,1e-08]
[1756816887473,1.01590718,109420.0,109410.0,1e-08]
[1756816887986,0.69623119,109420.0,109410.0,0.00215001]
[1756816888203,0.19338263,109420.0,109410.0,0.00527001]
[1756816888920,0.78277862,109420.0,109410.0,0.00312001]
[1756816889148,0.90715483,109420.0,109410.0,1e-08]
[1756816889821,0.92809365,109420.0,109410.0,1e-08]
[1756816890040,1.03938959,109420.0,109410.0,1e-08]
[1756816890712,0.52279864,109410.0,109400.0,1e-08]
[1756816890934,0.77243463,109410.0,109400.0,1e-08]
[1756816891152,0.80200254,109410.0,109400.0,1e-08]
[1756816891384,0.8213788,109410.0,109400.0,1e-08]
[1756816891599,0.89391853,109410.0,109400.0,1e-08]
[1756816891819,0.52281535,109400.0,109390.0,0.00664911]
[1756816892042,0.77245134,109400.0,109390.0,0.00976911]
[1756816892261,0.81347769,109400.0,109390.0,0.01191911]
[1756816893182,0.61473134,109400.0,109390.0,0.01187911]
[1756816893410,0.77249134,109400.0,109390.0,0.01187911]
[1756816893628,0.58224193,109400.0,109390.0,0.01287911]
[1756816893843,0.76505728,109400.0,109390.0,0.01287911]
[1756816894726,0.76505728,109400.0,109390.0,0.00760911]
[1756816895002,0.76705728,109400.0,109390.0,0.00760911]
[1756816895251,0.76705728,109400.0,109390.0,0.01287911]
[1756816896605,0.77849094,109400.0,109390.0,0.01287911]
[1756816896824,0.77837094,109400.0,109390.0,0.01287911]
[1756816897271,0.77837094,109400.0,109390.0,0.00760911]
[1756816897496,0.77837094,109400.0,109390.0,0.01287911]
[1756816898190,0.62073094,109400.0,109390.0,0.01287911]
[1756816898412,0.77837094,109400.0,109390.0,0.01287911]
[1756816898649,0.80586131,109400.0,109390.0,0.01287911]
[1756816900980,0.80586131,109400.0,109390.0,0.01284911]
[1756816901161,0.80586131,109400.0,109390.0,0.01072911]
[1756816902049,0.84686295,109400.0,109390.0,0.01072911]
[1756816902257,0.85319327,109400.0,109390.0,0.01284911]
[1756816902672,0.87264027,109400.0,109390.0,0.01284911]
[1756816904327,0.87256027,109400.0,109390.0,0.01284911]
[1756816904543,0.73964264,109400.0,109390.0,0.01284911]
[1756816905485,0.83155863,109400.0,109390.0,0.01072911]
[1756816905721,0.85594902,109400.0,109390.0,0.00760911]
[1756816905956,0.8496187,109400.0,109390.0,0.00760911]
[1756816906193,0.85597055,109400.0,109390.0,0.00760911]
[1756816906407,0.90551659,109400.0,109390.0,0.01268911]
[1756816907520,0.87292832,109400.0,109390.0,0.01268911]
[1756816908677,0.90551659,109400.0,109390.0,0.01268911]
[1756816908899,0.8811262,109400.0,109390.0,0.01268911]
[1756816909340,0.8811262,109400.0,109390.0,0.00760911]
[1756816909769,0.8811262,109400.0,109390.0,0.00972911]
[1756816909963,0.8811262,109400.0,109390.0,0.01056911]
[1756816910096,0.8811262,109400.0,109390.0,0.01268911]
[1756816912409,0.8811262,109400.0,109390.0,0.00760911]
[1756816912628,0.93004436,109400.0,109390.0,0.00760911]
[1756816913521,0.93004451,109400.0,109390.0,0.00760911]
[1756816913741,0.89745609,109400.0,109390.0,0.00760911]
[1756816916502,0.71658647,109400.0,109390.0,0.00760911]
[1756816916755,0.73992662,109400.0,109390.0,0.00760911]
[1756816917019,0.97179221,109400.0,109390.0,0.01268911]
[1756816917487,0.81423266,109400.0,109390.0,0.01268911]
[1756816917726,0.97179266,109400.0,109390.0,0.01268911]
[1756816918314,0.93920103,109400.0,109390.0,0.01268911]
[1756816918507,0.73992707,109400.0,109390.0,0.01268911]
[1756816918731,0.8381908,109400.0,109390.0,0.01268911]
[1756816919725,0.93010679,109400.0,109390.0,0.01268911]
[1756816919937,0.93010679,109400.0,109390.0,0.00760911]
[1756816920335,0.89748707,109400.0,109390.0,0.00760911]
[1756816921494,0.93814285,109400.0,109390.0,0.00760911]
[1756816922572,0.93816758,109400.0,109390.0,0.00760911]
[1756816922785,0.93816758,109400.0,109390.0,0.01268911]
[1756816923673,0.96842058,109400.0,109390.0,0.00760911]
[1756816924871,1.06033657,109400.0,109390.0,0.00760911]
[1756816925082,0.96842058,109400.0,109390.0,0.00760911]
[1756816925266,1.03874058,109400.0,109390.0,0.00760911]
[1756816925479,1.0713645,109400.0,109390.0,0.00760911]
[1756816926140,1.05437153,109400.0,109390.0,0.00760911]
[1756816926353,1.07136358,109400.0,109390.0,0.01056911]
[1756816926549,1.07136358,109400.0,109390.0,0.01268911]
[1756816926754,1.04107058,109400.0,109390.0,0.01268911]
[1756816927416,0.99215242,109400.0,109390.0,0.01056911]
[1756816927850,0.99215242,109400.0,109390.0,0.01268911]
[1756816928297,0.83463242,109400.0,109390.0,0.01268911]
[1756816928523,1.01662155,109400.0,109390.0,0.00760911]
[1756816928787,1.07132358,109400.0,109390.0,0.00760911]
[1756816929440,1.02240542,109400.0,109390.0,0.00760911]
[1756816929891,1.02240562,109400.0,109390.0,0.00760911]
[1756816931514,1.04687416,109400.0,109390.0,0.00760911]
[1756816932912,1.11089646,109400.0,109390.0,0.00760911]
[1756816936866,1.11090117,109400.0,109390.0,0.00760911]
[1756816937334,1.10737145,109400.0,109390.0,0.00760911]
[1756816937558,0.52283206,109390.0,109380.0,0.03096011]
[1756816937790,0.9945839,109390.0,109380.0,0.03096011]
[1756816938010,0.9700956,109390.0,109380.0,0.03096011]
[1756816939394,0.9710956,109390.0,109380.0,0.03397011]
[1756816939619,0.99555489,109390.0,109380.0,0.03096011]
[1756816940312,0.99655489,109390.0,109380.0,0.03096011]
[1756816940791,1.02405226,109390.0,109380.0,0.03096011]
[1756816941007,1.04499108,109390.0,109380.0,0.03096011]
[1756816941218,1.02053179,109390.0,109380.0,0.03096011]
[1756816941447,1.04502009,109390.0,109380.0,0.03096011]
[1756816941670,1.04402009,109390.0,109380.0,0.03096011]
[1756816941888,1.09293825,109390.0,109380.0,0.03096011]
[1756816942091,0.1828655,109370.0,109360.0,0.00341]
[1756816942322,0.52206849,109370.0,109360.0,0.00341]
[1756816942526,0.49383209,109370.0,109360.0,0.00556]
[1756816942754,0.52133281,109370.0,109360.0,0.00556]
[1756816943401,0.3642831,109370.0,109360.0,0.00556]
[1756816943549,0.5228031,109370.0,109360.0,0.00556]
[1756816944403,0.3652831,109370.0,109360.0,0.00556]
[1756816944813,0.5228031,109370.0,109360.0,0.00556]
[1756816945073,0.3672831,109370.0,109360.0,0.00556]
[1756816945300,0.5248031,109370.0,109360.0,0.00556]
[1756816945522,0.3478361,109370.0,109360.0,0.00556]
[1756816945742,0.5053561,109370.0,109360.0,0.00556]
[1756816946372,0.47573186,109370.0,109360.0,0.00556]
[1756816946596,0.31821186,109370.0,109360.0,0.00556]
[1756816946816,0.47573186,109370.0,109360.0,0.00556]
[1756816947476,0.31821186,109370.0,109360.0,0.00556]
[1756816947898,0.47573186,109370.0,109360.0,0.00556]
[1756816948612,0.56559702,109370.0,109360.0,0.00556]
[1756816948794,0.56559702,109370.0,109360.0,0.00341]
[1756816949256,0.57971324,109370.0,109360.0,0.0004]
[1756816950153,0.56559702,109370.0,109360.0,0.0004]
[1756816950377,0.93008532,109370.0,109360.0,0.0004]
[1756816950593,0.99879441,109370.0,109360.0,0.0004]
[1756816951642,0.99779441,109370.0,109360.0,0.0004]
[1756816951872,0.99579441,109370.0,109360.0,0.0004]
[1756816952082,1.0887104,109370.0,109360.0,0.0004]
[1756816952724,1.01247374,109370.0,109360.0,0.00556]
[1756816952937,1.01347374,109370.0,109360.0,0.00556]
[1756816953590,0.92155775,109370.0,109360.0,0.00556]
[1756816953779,0.90459702,109370.0,109360.0,0.00556]
[1756816954815,0.74707702,109370.0,109360.0,0.00556]